fUST/lending_fUST_20240729
["ID","MTS","AMOUNT","RATE_DAILY","PERIOD"]
[333494335,1722203439427,-136.25957388,0.00014365,2]
[333494336,1722203439439,-30.40709212,0.00014365,2]
[333494337,1722203439448,-761.43189654,0.00014588,2]
[333494338,1722203439457,-64.97101134,0.00014679,2]
[333494339,1722203439471,-435.02898866,0.00014679,2]
[333494340,1722203439480,-37.10336756,0.00014679,2]
[333494368,1722203440796,-462.89663244,0.00014679,2]
[333494369,1722203440807,-294.16991827,0.00014679,2]
[333494370,1722203440820,-205.83008173,0.00014679,2]
[333494371,1722203440831,-500.0,0.00014679,2]
[333494372,1722203440841,-500.0,0.00014679,2]
[333494373,1722203440852,-500.0,0.00014679,2]
[333494374,1722203440862,-500.0,0.00014679,2]
[333494375,1722203440871,-500.0,0.00014679,2]
[333494376,1722203440881,-500.0,0.00014679,2]
[333494377,1722203440890,-500.0,0.00014679,2]
[333494378,1722203440900,-500.0,0.00014679,2]
[333494379,1722203440909,-500.0,0.00014679,2]
[333494380,1722203440920,-500.0,0.00014679,2]
[333494381,1722203440930,-500.0,0.00014679,2]
[333494382,1722203440940,-500.0,0.00014679,2]
[333494383,1722203440951,-500.0,0.00014679,2]
[333494384,1722203440962,-450.31060739,0.00014679,2]
[333494385,1722203440971,-500.0,0.00014679,2]
[333494386,1722203440981,-500.0,0.00014679,2]
[333494387,1722203440990,-375.58457274,0.00014679,2]
[333494388,1722203440999,-500.0,0.00014679,2]
[333494389,1722203441008,-500.0,0.00014679,2]
[333494390,1722203441018,-500.0,0.00014679,2]
[333494391,1722203441028,-500.0,0.00014679,2]
[333494392,1722203441037,-500.0,0.00014679,2]
[333494393,1722203441048,-500.0,0.00014679,2]
[333494394,1722203441058,-500.0,0.00014679,2]
[333494395,1722203441069,-168.72109264,0.00014679,2]
[333494396,1722203441079,-500.0,0.00014679,2]
[333494397,1722203441091,-500.0,0.00014687,2]
[333494398,1722203441101,-500.0,0.00014687,2]
[333494399,1722203441111,-500.0,0.00014687,2]
[333494400,1722203441120,-500.0,0.00014687,2]
[333494401,1722203441130,-1435.54,0.00014687,2]
[333494402,1722203441139,-500.0,0.00014687,2]
[333494403,1722203441148,-957.75,0.00014687,2]
[333494404,1722203441158,-500.0,0.00014687,2]
[333494405,1722203441169,-500.0,0.00014687,2]
[333494406,1722203441179,-500.0,0.00014687,2]
[333494407,1722203441188,-500.0,0.00014687,2]
[333494408,1722203441199,-500.0,0.00014687,2]
[333494409,1722203441209,-566.31,0.00014687,2]
[333494410,1722203441221,-500.0,0.00014687,2]
[333494411,1722203441231,-500.0,0.00014687,2]
[333494412,1722203441243,-500.0,0.00014687,2]
[333494413,1722203441254,-500.0,0.00014687,2]
[333494414,1722203441264,-500.0,0.00014687,2]
[333494415,1722203441274,-500.0,0.00014687,2]
[333494416,1722203441285,-500.0,0.00014687,2]
[333494417,1722203441296,-500.0,0.00014687,2]
[333494418,1722203441307,-500.0,0.00014687,2]
[333494419,1722203441316,-305.80558808,0.00014687,2]
[333494420,1722203441327,-500.0,0.00014687,2]
[333494421,1722203441340,-222.02052564,0.00014687,2]
[333494422,1722203441351,-500.0,0.00014687,2]
[333494423,1722203441361,-418.62047456,0.00014687,2]
[333494424,1722203441371,-500.0,0.00014687,2]
[333494425,1722203441381,-500.0,0.00014687,2]
[333494426,1722203441390,-355.09139685,0.00014687,2]
[333494427,1722203441400,-500.0,0.00014687,2]
[333494428,1722203441411,-500.0,0.00014687,2]
[333494429,1722203441423,-375.78418464,0.00014687,2]
[333494430,1722203441436,-500.0,0.00014687,2]
[333494431,1722203441446,-500.0,0.00014687,2]
[333494432,1722203441458,-500.0,0.00014688,2]
[333494433,1722203441469,-500.0,0.00014688,2]
[333494434,1722203441479,-516.12729304,0.00014688,2]
[333494435,1722203441489,-518.47,0.00014688,2]
[333494436,1722203441498,-1465.97,0.00014688,2]
[333494437,1722203441508,-500.0,0.00014688,2]
[333494438,1722203441517,-557.53,0.00014688,2]
[333494439,1722203441529,-500.0,0.00014688,2]
[333494440,1722203441540,-500.0,0.00014688,2]
[333494441,1722203441549,-500.0,0.00014688,2]
[333494442,1722203441558,-500.0,0.00014688,2]
[333494443,1722203441568,-500.0,0.00014688,2]
[333494444,1722203441577,-500.0,0.00014688,2]
[333494445,1722203441587,-613.72,0.00014688,2]
[333494446,1722203441597,-500.0,0.00014688,2]
[333494447,1722203441610,-500.0,0.00014688,2]
[333494448,1722203441620,-151.0,0.00014688,2]
[333494449,1722203441630,-500.0,0.00014688,2]
[333494450,1722203441639,-500.0,0.00014688,2]
[333494451,1722203441649,-500.0,0.00014688,2]
[333494452,1722203441659,-500.0,0.00014688,2]
[333494453,1722203441668,-151.0,0.00014688,2]
[333494454,1722203441678,-500.0,0.00014688,2]
[333494455,1722203441687,-151.0,0.00014688,2]
[333494456,1722203441697,-500.0,0.00014688,2]
[333494457,1722203441707,-500.0,0.00014688,2]
[333494458,1722203441717,-500.0,0.00014688,2]
[333494459,1722203441727,-500.0,0.00014688,2]
[333494460,1722203441738,-500.0,0.00014688,2]
[333494461,1722203441747,-500.0,0.00014688,2]
[333494462,1722203441758,-500.0,0.00014688,2]
[333494463,1722203441767,-500.0,0.00014688,2]
[333494464,1722203441777,-1249.78,0.00014688,2]
[333494465,1722203441786,-500.0,0.00014688,2]
[333494466,1722203441796,-438.59328097,0.00014688,2]
[333494467,1722203441810,-61.40671903,0.00014688,2]
[333494468,1722203441820,-500.0,0.00014688,2]
[333494469,1722203441832,-151.0,0.00014689,2]
[333494470,1722203441842,-500.0,0.00014689,2]
[333494471,1722203441855,-500.0,0.00014689,2]
[333494472,1722203441864,-500.0,0.00014689,2]
[333494473,1722203441873,-151.0,0.00014689,2]
[333494474,1722203441883,-500.0,0.00014689,2]
[333494475,1722203441893,-500.0,0.00014689,2]
[333494476,1722203441902,-500.0,0.00014689,2]
[333494477,1722203441912,-500.0,0.00014689,2]
[333494478,1722203441922,-273.25574508,0.0001469,2]
[333494479,1722203441932,-151.0,0.0001469,2]
[333494480,1722203441943,-151.0,0.0001469,2]
[333494481,1722203441954,-151.0,0.0001469,2]
[333494482,1722203441963,-151.0,0.0001469,2]
[333494483,1722203441973,-151.0,0.0001469,2]
[333494484,1722203441982,-151.0,0.0001469,2]
[333494485,1722203441991,-151.0,0.0001469,2]
[333494486,1722203442002,-153.0,0.00014877,2]
[333494487,1722203442014,-287.3890244,0.00014877,2]
[333494488,1722203442025,-153.0,0.00014877,2]
[333494489,1722203442035,-153.0,0.00014877,2]
[333494490,1722203442045,-206.7964656,0.00014877,2]
[333494491,1722203442056,-500.0,0.00014951,2]
[333494492,1722203442066,-3381.2257151,0.00014952,2]
[333494506,1722203443716,-161.23110102,0.00014324,2]
[333494508,1722203443725,-1611.13116747,0.00014952,2]
[333494510,1722203443737,-36747.84312213,0.00014952,2]
[333494512,1722203443746,-151.0,0.00014952,2]
[333494513,1722203443756,-151.0,0.00014952,2]
[333494515,1722203443766,-151.0,0.00014952,2]
[333494517,1722203443775,-190.485817,0.00014952,2]
[333494519,1722203443785,-151.0,0.00014952,2]
[333494521,1722203443795,-151.0,0.00014952,2]
[333494523,1722203443804,-151.0,0.00014952,2]
[333494525,1722203443814,-151.0,0.00014952,2]
[333494527,1722203443823,-500.0,0.0001496,2]
[333494529,1722203443833,-500.0,0.00014961,2]
[333494530,1722203443844,-500.0,0.00014961,2]
[333494532,1722203443855,-500.0,0.00014961,2]
[333494534,1722203443865,-151.0,0.00014961,2]
[333494537,1722203443874,-151.0,0.00014961,2]
[333494539,1722203443885,-500.0,0.00014961,2]
[333494541,1722203443895,-500.0,0.00014961,2]
[333494543,1722203443905,-500.0,0.00014961,2]
[333494545,1722203443916,-551.13,0.00014961,2]
[333494546,1722203443926,-500.0,0.00014961,2]
[333494547,1722203443937,-500.0,0.00014961,2]
[333494548,1722203443947,-500.0,0.00014961,2]
[333494549,1722203443960,-500.0,0.00014961,2]
[333494550,1722203443970,-500.0,0.00014961,2]
[333494551,1722203443980,-500.0,0.00014961,2]
[333494552,1722203443990,-500.0,0.00014961,2]
[333494553,1722203443999,-500.0,0.00014961,2]
[333494554,1722203444009,-500.0,0.00014961,2]
[333494555,1722203444019,-500.0,0.00014961,2]
[333494556,1722203444029,-151.0,0.00014961,2]
[333494557,1722203444041,-151.0,0.00014961,2]
[333494558,1722203444051,-500.0,0.00014961,2]
[333494559,1722203444061,-500.0,0.00014961,2]
[333494560,1722203444071,-500.0,0.00014961,2]
[333494561,1722203444081,-503.81854357,0.00014961,2]
[333494562,1722203444091,-500.0,0.00014961,2]
[333494563,1722203444180,-500.0,0.00014961,2]
[333494564,1722203444192,-278.42,0.00014961,2]
[333494565,1722203444205,-151.0,0.00014961,2]
[333494566,1722203444216,-500.0,0.00014961,2]
[333494567,1722203444226,-500.0,0.00014961,2]
[333494568,1722203444236,-500.0,0.00014961,2]
[333494569,1722203444246,-500.0,0.00014961,2]
[333494570,1722203444258,-500.0,0.00014961,2]
[333494571,1722203444267,-522.1,0.00014961,2]
[333494572,1722203444278,-500.0,0.00014961,2]
[333494573,1722203444290,-500.0,0.00014961,2]
[333494574,1722203444301,-500.0,0.00014961,2]
[333494575,1722203444311,-509.16,0.00014961,2]
[333494576,1722203444321,-500.0,0.00014961,2]
[333494577,1722203444331,-1435.54,0.00014961,2]
[333494578,1722203444342,-957.75,0.00014961,2]
[333494579,1722203444352,-500.0,0.00014961,2]
[333494580,1722203444362,-500.0,0.00014961,2]
[333494581,1722203444372,-507.03,0.00014961,2]
[333494582,1722203444382,-636.18,0.00014961,2]
[333494583,1722203444392,-2394.11,0.00014961,2]
[333494584,1722203444401,-469.03,0.00014961,2]
[333494585,1722203444411,-603.5,0.00014961,2]
[333494586,1722203444420,-418.79,0.00014961,2]
[333494587,1722203444429,-500.0,0.00014961,2]
[333494588,1722203444441,-206.2,0.00014961,2]
[333494589,1722203444451,-151.0,0.00014961,2]
[333494590,1722203444461,-500.0,0.00014961,2]
[333494591,1722203444472,-500.0,0.00014961,2]
[333494592,1722203444482,-500.0,0.00014961,2]
[333494593,1722203444491,-227.88386343,0.00014962,2]
[333494594,1722203444502,-485.38602671,0.00014962,2]
[333494595,1722203444512,-500.0,0.00014962,2]
[333494596,1722203444522,-151.0,0.00014962,2]
[333494597,1722203444536,-500.0,0.00014962,2]
[333494598,1722203444546,-500.0,0.00014962,2]
[333494599,1722203444555,-500.0,0.00014962,2]
[333494600,1722203444565,-500.0,0.00014962,2]
[333494601,1722203444575,-500.0,0.00014962,2]
[333494602,1722203444585,-500.0,0.00014962,2]
[333494603,1722203444595,-500.0,0.00014962,2]
[333494604,1722203444606,-500.0,0.00014962,2]
[333494605,1722203444615,-500.0,0.00014962,2]
[333494606,1722203444625,-500.0,0.00014962,2]
[333494607,1722203444635,-500.0,0.00014962,2]
[333494608,1722203444644,-288.11,0.00014962,2]
[333494609,1722203444656,-1465.97,0.00014962,2]
[333494610,1722203444666,-557.53,0.00014962,2]
[333494611,1722203444676,-226.29,0.00014962,2]
[333494612,1722203444686,-500.0,0.00014962,2]
[333494613,1722203444696,-500.0,0.00014962,2]
[333494614,1722203444707,-261.27,0.00014962,2]
[333494615,1722203444719,-500.0,0.00014962,2]
[333494616,1722203444732,-206.99,0.00014962,2]
[333494617,1722203444742,-500.0,0.00014962,2]
[333494618,1722203444753,-500.0,0.00014962,2]
[333494619,1722203444763,-500.0,0.00014962,2]
[333494620,1722203444773,-500.0,0.00014962,2]
[333494621,1722203444782,-1249.78,0.00014962,2]
[333494622,1722203444792,-500.0,0.00014962,2]
[333494623,1722203444801,-500.0,0.00014962,2]
[333494624,1722203444811,-151.0,0.00014963,2]
[333494625,1722203444821,-500.0,0.00014963,2]
[333494626,1722203444830,-500.0,0.00014963,2]
[333494627,1722203444840,-2846.09052378,0.00015,2]
[333494628,1722203444851,-783.83053196,0.00015,2]
[333494629,1722203444863,-951.2964008,0.00015,2]
[333494630,1722203444874,-500.0,0.00015235,2]
[333494631,1722203444885,-500.0,0.00015235,2]
[333494632,1722203444895,-500.0,0.00015235,2]
[333494633,1722203444906,-500.0,0.00015235,2]
[333494634,1722203444916,-501.63560941,0.00015235,2]
[333494635,1722203444926,-265.64,0.00015235,2]
[333494636,1722203444937,-500.0,0.00015235,2]
[333494637,1722203444946,-500.0,0.00015235,2]
[333494638,1722203444955,-500.0,0.00015235,2]
[333494639,1722203444966,-500.0,0.00015235,2]
[333494640,1722203444975,-1435.54,0.00015235,2]
[333494641,1722203444985,-957.75,0.00015235,2]
[333494642,1722203444995,-586.93,0.00015235,2]
[333494643,1722203445004,-2394.11,0.00015235,2]
[333494644,1722203445014,-500.0,0.00015235,2]
[333494645,1722203445024,-500.0,0.00015235,2]
[333494646,1722203445033,-500.0,0.00015235,2]
[333494647,1722203445043,-500.0,0.00015236,2]
[333494648,1722203445053,-500.0,0.00015236,2]
[333494649,1722203445063,-299.24,0.00015236,2]
[333494650,1722203445073,-1465.97,0.00015236,2]
[333494651,1722203445082,-557.53,0.00015236,2]
[333494652,1722203445091,-520.02612248,0.00015236,2]
[333494653,1722203445101,-500.0,0.00015236,2]
[333494654,1722203445111,-500.0,0.00015236,2]
[333494655,1722203445120,-500.0,0.00015236,2]
[333494656,1722203445130,-500.0,0.00015236,2]
[333494657,1722203445139,-500.0,0.00015236,2]
[333494658,1722203445149,-500.0,0.00015236,2]
[333494659,1722203445159,-1249.78,0.00015236,2]
[333494660,1722203445168,-500.0,0.00015236,2]
[333494661,1722203445178,-175.22312852,0.00015236,2]
[333494662,1722203445188,-500.0,0.00015237,2]
[333494663,1722203445198,-166.666666,0.00015282,2]
[333494664,1722203445209,-40571.5889623,0.0001529,2]
[333494699,1722203446759,-1168.6110424,0.0001529,2]
[333494700,1722203446769,-150.112233,0.000153,2]
[333494701,1722203446778,-206.7964656,0.000153,2]
[333494702,1722203446788,-153.0,0.000153,2]
[333494703,1722203446798,-294.0479944,0.000153,2]
[333494704,1722203446807,-153.0,0.000153,2]
[333494705,1722203446816,-153.0,0.000153,2]
[333494706,1722203446826,-153.0,0.000153,2]
[333494707,1722203446835,-294.0479944,0.000153,2]
[333494708,1722203446845,-153.0,0.000153,2]
[333494709,1722203446855,-206.7964656,0.000153,2]
[333494710,1722203446864,-153.0,0.000153,2]
[333494711,1722203446874,-206.7964656,0.000153,2]
[333494712,1722203446883,-153.0,0.000153,2]
[333494713,1722203446893,-153.0,0.000153,2]
[333494714,1722203446902,-206.7964656,0.000153,2]
[333494715,1722203446912,-153.0,0.000153,2]
[333494716,1722203446921,-445.7251173,0.000153,2]
[333494717,1722203446931,-153.0,0.000153,2]
[333494718,1722203446941,-441.7258208,0.000153,2]
[333494719,1722203446950,-500.0,0.00015366,2]
[333494720,1722203446960,-290.99714877,0.00015376,2]
[333494721,1722203447450,-209.00285123,0.00015376,2]
[333494723,1722203447461,-500.0,0.00015377,2]
[333494724,1722203447470,-500.0,0.00015377,2]
[333494725,1722203447480,-500.0,0.00015377,2]
[333494726,1722203447489,-500.0,0.00015377,2]
[333494727,1722203447498,-500.0,0.00015377,2]
[333494728,1722203447508,-600.0,0.00015396,2]
[333494729,1722203447517,-255.48578449,0.00015509,2]
[333494730,1722203447527,-191.31,0.00015509,2]
[333494731,1722203447540,-519.69,0.00015509,2]
[333494732,1722203447550,-500.0,0.00015509,2]
[333494733,1722203447559,-500.0,0.00015509,2]
[333494734,1722203447569,-500.0,0.00015509,2]
[333494735,1722203447578,-500.0,0.00015509,2]
[333494736,1722203447588,-1435.54,0.00015509,2]
[333494737,1722203447597,-957.75,0.00015509,2]
[333494738,1722203447607,-2394.11,0.00015509,2]
[333494739,1722203447621,-500.0,0.00015509,2]
[333494740,1722203447630,-500.0,0.00015509,2]
[333494741,1722203447641,-500.0,0.00015509,2]
[333494742,1722203447651,-500.0,0.0001551,2]
[333494743,1722203447660,-202.38065809,0.0001551,2]
[333494747,1722204427212,-191.49221591,0.00012886,2]
[333494748,1722204427233,-158.257668,0.00012986,2]
[333494749,1722204427254,-482.7372859,0.00013307,2]
[333494750,1722204427277,-174.962779,0.00013648,2]
[333494751,1722204427297,-317.93696,0.00013699,2]
[333494752,1722204427321,-174.962779,0.00013826,2]
[333494753,1722204427346,-174.962779,0.00014004,2]
[333494754,1722204427369,-174.962779,0.00014181,2]
[333494755,1722204427393,-206.26110897,0.00014247,2]
[333494756,1722204434256,-253.52576203,0.00014247,2]
[333494757,1722204434279,-158.374979,0.00014247,2]
[333494758,1722204434303,-174.962779,0.00014359,2]
[333494759,1722204434326,-178.60044398,0.00014686,2]
[333494760,1722204437105,-48.39955602,0.00014686,2]
[333494761,1722204437128,-251.60044398,0.00014687,2]
[333494762,1722204439105,-248.39955602,0.00014687,2]
[333494763,1722204439128,-500.0,0.00014687,2]
[333494764,1722204439150,-167.68177698,0.00014687,2]
[333494765,1722204452424,-334.82673556,0.00014687,2]
[333494766,1722204452447,-500.0,0.00014687,2]
[333494767,1722204452470,-487.03379776,0.00014687,2]
[333494937,1722204637885,-158.96848,0.00013893,2]
[333494939,1722204637895,-2257.23541428,0.00014588,2]
[333494942,1722204637905,-272.25673415,0.00014688,2]
[333494944,1722204637914,-500.0,0.00014688,2]
[333494946,1722204637924,-500.0,0.00014688,2]
[333494948,1722204637932,-500.0,0.00014688,2]
[333494950,1722204637942,-352.0801214,0.00014688,2]
[333494952,1722204637955,-500.0,0.00014688,2]
[333494953,1722204637965,-495.06546763,0.00014688,2]
[333494968,1722204638093,-500.0,0.00014689,2]
[333494970,1722204638104,-500.0,0.00014689,2]
[333494972,1722204638116,-500.0,0.00014689,2]
[333494973,1722204638126,-500.0,0.00014689,2]
[333494974,1722204638137,-500.0,0.00014689,2]
[333494975,1722204638147,-1007.2658801,0.00014689,2]
[333494976,1722204638161,-275.4641199,0.00014689,2]
[333494977,1722204638170,-500.0,0.00014689,2]
[333494978,1722204638180,-500.0,0.00014689,2]
[333494979,1722204638190,-500.0,0.00014689,2]
[333494980,1722204638200,-500.0,0.00014689,2]
[333494981,1722204638209,-500.0,0.00014689,2]
[333494982,1722204638221,-500.0,0.00014689,2]
[333494983,1722204638232,-500.0,0.00014689,2]
[333494984,1722204638242,-500.0,0.00014689,2]
[333494985,1722204638252,-500.0,0.00014689,2]
[333494986,1722204638262,-7.16106823,0.00014689,2]
[333494987,1722204638274,-492.83893177,0.00014689,2]
[333494988,1722204638284,-1196.28,0.00014689,2]
[333494989,1722204638293,-950.68,0.00014689,2]
[333494990,1722204638303,-500.0,0.00014689,2]
[333494991,1722204638313,-278.36770862,0.00014689,2]
[333494992,1722204638322,-500.0,0.00014689,2]
[333494993,1722204638332,-500.0,0.00014689,2]
[333494994,1722204638343,-228.34551158,0.00014689,2]
[333495087,1722204643010,-271.65448842,0.00014689,2]
[333495089,1722204643020,-60.34551159,0.00014689,2]
[333495122,1722204645991,-1033.21448841,0.00014689,2]
[333495123,1722204646001,-500.0,0.00014689,2]
[333495124,1722204646010,-500.0,0.00014689,2]
[333495125,1722204646020,-500.0,0.00014689,2]
[333495126,1722204646030,-500.0,0.00014689,2]
[333495127,1722204646041,-500.0,0.00014689,2]
[333495128,1722204646052,-500.0,0.00014689,2]
[333495129,1722204646062,-500.0,0.00014689,2]
[333495130,1722204646072,-500.0,0.0001496,2]
[333495131,1722204646084,-214.06391165,0.0001496,2]
[333495132,1722204646093,-293.03433219,0.0001496,2]
[333495133,1722204646103,-500.0,0.0001496,2]
[333495134,1722204646112,-500.0,0.0001496,2]
[333495135,1722204646123,-155.41436795,0.0001496,2]
[333495136,1722204646132,-448.5639778,0.0001496,2]
[333495137,1722204646142,-500.0,0.0001496,2]
[333495138,1722204646152,-500.0,0.0001496,2]
[333495139,1722204646162,-163.04892925,0.0001496,2]
[333495140,1722204646172,-500.0,0.00014961,2]
[333495141,1722204646182,-187.48453867,0.00014961,2]
[333495142,1722204646192,-500.0,0.00014961,2]
[333495143,1722204646202,-336.97411328,0.00014961,2]
[333495144,1722204646212,-500.0,0.00014961,2]
[333495145,1722204646222,-500.0,0.00014961,2]
[333495146,1722204646231,-500.0,0.00014961,2]
[333495147,1722204646240,-500.0,0.00014961,2]
[333495148,1722204646250,-500.0,0.00014961,2]
[333495149,1722204646260,-500.0,0.00014961,2]
[333495150,1722204646270,-500.0,0.00014961,2]
[333495151,1722204646282,-500.0,0.00014961,2]
[333495152,1722204646292,-503.02995321,0.00014961,2]
[333495153,1722204646303,-500.0,0.00014961,2]
[333495154,1722204646314,-500.0,0.00014961,2]
[333495155,1722204646324,-1054.67426845,0.00014961,2]
[333495156,1722204646338,-1019.87573155,0.00014961,2]
[333495157,1722204646348,-616.93753203,0.00014961,2]
[333495158,1722204646359,-499.33785755,0.00014961,2]
[333495159,1722204646368,-500.0,0.00014961,2]
[333495160,1722204646380,-448.95470416,0.00014961,2]
[333495161,1722204646394,-51.04529584,0.00014961,2]
[333495162,1722204646405,-217.78729524,0.00014961,2]
[333495163,1722204646415,-88.92254152,0.00014961,2]
[333495164,1722204646427,-413.1263451,0.00014961,2]
[333495165,1722204646437,-501.10551533,0.00014961,2]
[333495166,1722204646448,-500.0,0.00014962,2]
[333495167,1722204646459,-235.00718168,0.00014962,2]
[333495169,1722205539141,-158.798619,0.00012986,2]
[333495170,1722205539165,-1094.4252309,0.00013334,2]
[333495171,1722205539189,-158.96848,0.00013699,2]
[333495172,1722205539216,-174.768522,0.00013729,2]
[333495173,1722205539243,-174.768522,0.00013848,2]
[333495174,1722205539268,-174.768522,0.00013967,2]
[333495175,1722205539294,-174.768522,0.00014087,2]
[333495176,1722205539318,-463.611166,0.00014247,2]
[333495177,1722205539342,-158.374979,0.00014247,2]
[333495178,1722205539368,-174.768522,0.00014444,2]
[333495179,1722205539391,-367.53930495,0.00014649,2]
[333495180,1722205539413,-500.0,0.00014689,2]
[333495181,1722205539435,-500.0,0.00014689,2]
[333495182,1722205539456,-205.12403253,0.00014689,2]
[333495183,1722205539480,-163.99478446,0.00014689,2]
[333495184,1722205539505,-164.13425047,0.00014689,2]
[333495185,1722205539532,-500.0,0.00014689,2]
[333495186,1722205539552,-221.67394085,0.00014689,2]
[333495187,1722205539574,-500.0,0.00014689,2]
[333495188,1722205539596,-500.0,0.00014689,2]
[333495189,1722205539619,-500.0,0.00014689,2]
[333495190,1722205539643,-500.0,0.00014689,2]
[333495191,1722205539665,-500.0,0.00014689,2]
[333495192,1722205539688,-257.28022957,0.00014689,2]
[333495193,1722205539709,-500.0,0.00014689,2]
[333495194,1722205539731,-500.0,0.00014689,2]
[333495195,1722205539753,-395.81085437,0.00014689,2]
[333495196,1722205539775,-500.0,0.00014689,2]
[333495197,1722205539797,-214.34,0.00014689,2]
[333495198,1722205539819,-1988.11,0.00014689,2]
[333495199,1722205539844,-911.07,0.00014689,2]
[333495200,1722205539866,-465.07,0.00014689,2]
[333495201,1722205539889,-588.84,0.00014689,2]
[333495202,1722205539912,-187.32606687,0.00014862,2]
[333495203,1722205540028,-717.53575944,0.00014862,2]
[333495204,1722205540056,-500.0,0.00014961,2]
[333495205,1722205540082,-1146.43,0.00014961,2]
[333495206,1722205540106,-428.65,0.00014961,2]
[333495207,1722205540127,-440.44527536,0.00014962,2]
[333495208,1722205540151,-500.0,0.00014962,2]
[333495209,1722205540173,-500.0,0.00014962,2]
[333495210,1722205540196,-500.0,0.00014962,2]
[333495211,1722205540218,-500.0,0.00014962,2]
[333495212,1722205540241,-500.0,0.00014962,2]
[333495213,1722205540264,-500.0,0.00014962,2]
[333495214,1722205540284,-500.0,0.00014962,2]
[333495215,1722205540308,-500.0,0.00014962,2]
[333495216,1722205540332,-427.45876759,0.00014962,2]
[333495217,1722205540355,-500.0,0.00014962,2]
[333495218,1722205540379,-228.24695006,0.00014962,2]
[333495219,1722205540401,-380.51,0.00014962,2]
[333495220,1722205540424,-500.0,0.00014962,2]
[333495221,1722205540448,-500.0,0.00014962,2]
[333495222,1722205540472,-500.0,0.00014962,2]
[333495223,1722205540494,-443.41517919,0.00014962,2]
[333495224,1722205540516,-500.0,0.00014962,2]
[333495225,1722205540541,-500.0,0.00014962,2]
[333495226,1722205540563,-500.0,0.00014962,2]
[333495227,1722205540588,-1229.28,0.00014962,2]
[333495228,1722205540612,-500.0,0.00014962,2]
[333495229,1722205540638,-455.22962645,0.00014962,2]
[333495230,1722205540661,-500.0,0.00014962,2]
[333495231,1722205540682,-500.0,0.00014962,2]
[333495232,1722205540705,-503.48151961,0.00014962,2]
[333495233,1722205540727,-500.0,0.00014962,2]
[333495234,1722205540750,-500.0,0.00014962,2]
[333495235,1722205540772,-500.0,0.00014962,2]
[333495236,1722205540793,-500.0,0.00014962,2]
[333495237,1722205540815,-500.0,0.00014962,2]
[333495238,1722205540837,-500.0,0.00014962,2]
[333495239,1722205540859,-500.0,0.00014962,2]
[333495240,1722205540882,-500.0,0.00014962,2]
[333495241,1722205540905,-500.0,0.00014962,2]
[333495242,1722205540928,-500.0,0.00014962,2]
[333495243,1722205540950,-500.0,0.00014962,2]
[333495244,1722205540972,-500.000001,0.00014962,2]
[333495245,1722205540994,-500.0,0.00014962,2]
[333495246,1722205541017,-272.96800646,0.00014962,2]
[333495247,1722205541043,-58.87372987,0.00014962,2]
[333495249,1722205633114,-158.768485,0.00012986,2]
[333495250,1722205633139,-500.0,0.00014689,2]
[333495251,1722205633162,-300.0,0.00014689,2]